[Event "Titled Tuesday Blitz May 24 Early 2022"]
[White "Buscar, Michael"]
[Black "Steenbekkers, Franck"]
[WhiteFideId "2603616"]
[BlackFideId "1004220"]
[WhiteElo "2010"]
[BlackElo "2020"]
[Result "1-0"]
[Round "05"]
[TimeControl "180+1"]
[Date "2022.05.25"]
[WhiteClock "0:00:25"]
[BlackClock "0:00:42"]

1. e4 {[%clk 0:02:31]}  e6 {[%clk 0:02:57]} 2. b3 {[%clk 0:02:30]}  d5 {[%clk 0:02:56]} 3. exd5 {[%clk 0:02:28]}  exd5 {[%clk 0:02:55]} 4. Bb2 {[%clk 0:02:29]}  c5 {[%clk 0:02:55]} 5. Nf3 {[%clk 0:02:28]}  Nf6 {[%clk 0:02:54]} 6. d4 {[%clk 0:02:27]}  Nc6 {[%clk 0:02:52]} 7. Be2 {[%clk 0:02:25]}  Bg4 {[%clk 0:02:50]} 8. Nbd2 {[%clk 0:02:21]}  cxd4 {[%clk 0:02:47]} 9. Nxd4 {[%clk 0:02:17]}  Bxe2 {[%clk 0:02:45]} 10. Qxe2+ {[%clk 0:02:16]}  Be7 {[%clk 0:02:44]} 11. O-O {[%clk 0:02:14]}  O-O {[%clk 0:02:43]} 12. N2f3 {[%clk 0:02:13]}  Ne4 {[%clk 0:02:41]} 13. Rad1 {[%clk 0:02:11]}  Bf6 {[%clk 0:02:40]} 14. c4 {[%clk 0:01:57]}  Re8 {[%clk 0:02:28]} 15. Qc2 {[%clk 0:01:46]}  Rc8 {[%clk 0:02:20]} 16. Qb1 {[%clk 0:01:38]}  Qa5 {[%clk 0:02:05]} 17. Nxc6 {[%clk 0:01:27]}  bxc6 {[%clk 0:01:55]} 18. cxd5 {[%clk 0:01:20]}  cxd5 {[%clk 0:01:54]} 19. Bxf6 {[%clk 0:01:20]}  Nxf6 {[%clk 0:01:54]} 20. Nd4 {[%clk 0:01:10]}  Re4 {[%clk 0:01:48]} 21. Nf5 {[%clk 0:01:06]}  h6 {[%clk 0:01:42]} 22. Rfe1 {[%clk 0:00:58]}  Rce8 {[%clk 0:01:34]} 23. Rxe4 {[%clk 0:00:43]}  dxe4 {[%clk 0:01:28]} 24. Ne3 {[%clk 0:00:43]}  Re5 {[%clk 0:01:23]} 25. Nc4 {[%clk 0:00:42]}  Qc5 {[%clk 0:01:21]} 26. Nxe5 {[%clk 0:00:40]}  Qxe5 {[%clk 0:01:21]} 27. h3 {[%clk 0:00:38]}  g5 {[%clk 0:01:19]} 28. Qa1 {[%clk 0:00:37]}  Qf4 {[%clk 0:01:18]} 29. Qd4 {[%clk 0:00:35]}  g4 {[%clk 0:01:16]} 30. g3 {[%clk 0:00:28]}  Qf3 {[%clk 0:01:12]} 31. hxg4 {[%clk 0:00:23]}  Nxg4 {[%clk 0:01:12]} 32. Rf1 {[%clk 0:00:18]}  e3 {[%clk 0:01:10]} 33. Qf4 {[%clk 0:00:16]}  exf2+ {[%clk 0:01:00]} 34. Rxf2 {[%clk 0:00:16]}  Qxf2+ {[%clk 0:00:59]} 35. Qxf2 {[%clk 0:00:17]}  Nxf2 {[%clk 0:00:59]} 36. Kxf2 {[%clk 0:00:17]}  Kg7 {[%clk 0:00:59]} 37. Kf3 {[%clk 0:00:18]}  Kf6 {[%clk 0:00:59]} 38. Kf4 {[%clk 0:00:19]}  a5 {[%clk 0:00:57]} 39. a3 {[%clk 0:00:19]}  Ke6 {[%clk 0:00:56]} 40. b4 {[%clk 0:00:18]}  axb4 {[%clk 0:00:56]} 41. axb4 {[%clk 0:00:19]}  f6 {[%clk 0:00:49]} 42. b5 {[%clk 0:00:18]}  h5 {[%clk 0:00:45]} 43. b6 {[%clk 0:00:18]}  Kd6 {[%clk 0:00:44]} 44. Kf5 {[%clk 0:00:19]}  Kc6 {[%clk 0:00:43]} 45. Kxf6 {[%clk 0:00:19]}  Kxb6 {[%clk 0:00:44]} 46. Kg5 {[%clk 0:00:20]}  Kc6 {[%clk 0:00:44]} 47. Kxh5 {[%clk 0:00:21]}  Kd6 {[%clk 0:00:44]} 48. Kg6 {[%clk 0:00:22]}  Ke7 {[%clk 0:00:44]} 49. Kg7 {[%clk 0:00:22]}  Ke6 {[%clk 0:00:43]} 50. g4 {[%clk 0:00:23]}  Ke5 {[%clk 0:00:43]} 51. g5 {[%clk 0:00:24]}  Kf5 {[%clk 0:00:42]} 52. g6 {[%clk 0:00:25]} 1-0


[Site "https://www.chess.com"]

[Event "Titled Tuesday Blitz May 24 Early 2022"]
[White "Cervantes Landeiro, Thalia"]
[Black "Wagh Suyog"]
[WhiteFideId "3520498"]
[BlackFideId "25071688"]
[WhiteElo "2514"]
[BlackElo "2766"]
[Result "1-0"]
[Round "05"]
[TimeControl "180+1"]
[Date "2022.05.25"]
[WhiteClock "0:00:25"]
[BlackClock "0:00:02"]

1. d4 {[%clk 0:03:00]}  b6 {[%clk 0:00:46]} 2. e4 {[%clk 0:02:56]}  Bb7 {[%clk 0:00:47]} 3. Bd3 {[%clk 0:02:56]}  e6 {[%clk 0:00:47]} 4. c4 {[%clk 0:02:56]}  g6 {[%clk 0:00:47]} 5. Nc3 {[%clk 0:02:55]}  Bg7 {[%clk 0:00:48]} 6. Be3 {[%clk 0:02:55]}  h6 {[%clk 0:00:49]} 7. f4 {[%clk 0:02:54]}  d6 {[%clk 0:00:49]} 8. Nf3 {[%clk 0:02:54]}  a6 {[%clk 0:00:50]} 9. O-O {[%clk 0:02:54]}  Nd7 {[%clk 0:00:51]} 10. f5 {[%clk 0:02:53]}  e5 {[%clk 0:00:45]} 11. fxg6 {[%clk 0:02:51]}  fxg6 {[%clk 0:00:45]} 12. d5 {[%clk 0:02:44]}  Qe7 {[%clk 0:00:43]} 13. b4 {[%clk 0:02:42]}  g5 {[%clk 0:00:41]} 14. Nd2 {[%clk 0:02:39]}  Ngf6 {[%clk 0:00:41]} 15. Qe2 {[%clk 0:02:28]}  O-O {[%clk 0:00:41]} 16. Nb3 {[%clk 0:02:27]}  Rf7 {[%clk 0:00:41]} 17. Rac1 {[%clk 0:02:23]}  Raf8 {[%clk 0:00:41]} 18. c5 {[%clk 0:02:21]}  bxc5 {[%clk 0:00:40]} 19. bxc5 {[%clk 0:02:21]}  Nxc5 {[%clk 0:00:38]} 20. Nxc5 {[%clk 0:02:21]}  dxc5 {[%clk 0:00:39]} 21. Na4 {[%clk 0:02:20]}  Bc8 {[%clk 0:00:23]} 22. Bxc5 {[%clk 0:02:17]}  Qe8 {[%clk 0:00:24]} 23. Bxf8 {[%clk 0:02:12]}  Qxf8 {[%clk 0:00:24]} 24. h3 {[%clk 0:02:01]}  Qb4 {[%clk 0:00:24]} 25. Nc5 {[%clk 0:01:53]}  g4 {[%clk 0:00:24]} 26. Ne6 {[%clk 0:01:44]}  gxh3 {[%clk 0:00:23]} 27. gxh3 {[%clk 0:01:21]}  Bxe6 {[%clk 0:00:23]} 28. dxe6 {[%clk 0:01:20]}  Re7 {[%clk 0:00:24]} 29. Rb1 {[%clk 0:01:14]}  Qd4+ {[%clk 0:00:24]} 30. Kh2 {[%clk 0:01:14]}  Kh7 {[%clk 0:00:21]} 31. Rg1 {[%clk 0:01:04]}  Rxe6 {[%clk 0:00:20]} 32. Qg2 {[%clk 0:01:04]}  Nh5 {[%clk 0:00:17]} 33. Be2 {[%clk 0:01:01]}  Re7 {[%clk 0:00:04]} 34. Bxh5 {[%clk 0:01:01]}  Qd8 {[%clk 0:00:03]} 35. Rbf1 {[%clk 0:00:56]}  Qd6 {[%clk 0:00:02]} 36. Rf7 {[%clk 0:00:47]}  Rxf7 {[%clk 0:00:02]} 37. Bxf7 {[%clk 0:00:48]}  Qf6 {[%clk 0:00:03]} 38. Bg6+ {[%clk 0:00:48]}  Kh8 {[%clk 0:00:03]} 39. Rb1 {[%clk 0:00:45]}  Bf8 {[%clk 0:00:03]} 40. Rf1 {[%clk 0:00:44]}  Qe7 {[%clk 0:00:03]} 41. Qf3 {[%clk 0:00:41]}  Kg7 {[%clk 0:00:03]} 42. Bh5 {[%clk 0:00:40]}  c5 {[%clk 0:00:02]} 43. Rg1+ {[%clk 0:00:40]}  Kh8 {[%clk 0:00:02]} 44. Qf5 {[%clk 0:00:40]}  Bg7 {[%clk 0:00:03]} 45. Qc8+ {[%clk 0:00:38]}  Bf8 {[%clk 0:00:02]} 46. Rf1 {[%clk 0:00:29]}  Kg8 {[%clk 0:00:03]} 47. Bf7+ {[%clk 0:00:26]}  Kg7 {[%clk 0:00:03]} 48. Bd5 {[%clk 0:00:26]}  Kh8 {[%clk 0:00:02]} 49. Rxf8+ {[%clk 0:00:25]} 1-0


[Site "https://www.chess.com"]

[Event "Titled Tuesday Blitz May 24 Early 2022"]
[White "Chen, Qi b"]
[Black "Vasquez Schroeder, Rodrigo"]
[WhiteFideId "8614733"]
[BlackFideId "3400042"]
[WhiteElo "2432"]
[BlackElo "2567"]
[Result "0-1"]
[Round "05"]
[TimeControl "180+1"]
[Date "2022.05.24"]
[WhiteClock "0:00:01"]
[BlackClock "0:00:53"]

1. d4 {[%clk 0:02:57]}  Nf6 {[%clk 0:02:59]} 2. c4 {[%clk 0:02:56]}  g6 {[%clk 0:02:56]} 3. Nc3 {[%clk 0:02:56]}  Bg7 {[%clk 0:02:56]} 4. Nf3 {[%clk 0:02:54]}  O-O {[%clk 0:02:56]} 5. e3 {[%clk 0:02:54]}  d6 {[%clk 0:02:56]} 6. Be2 {[%clk 0:02:53]}  c5 {[%clk 0:02:53]} 7. O-O {[%clk 0:02:52]}  cxd4 {[%clk 0:02:53]} 8. Nxd4 {[%clk 0:02:50]}  Nc6 {[%clk 0:02:52]} 9. b3 {[%clk 0:02:48]}  Nxd4 {[%clk 0:02:48]} 10. exd4 {[%clk 0:02:47]}  d5 {[%clk 0:02:48]} 11. Bf3 {[%clk 0:02:34]}  Be6 {[%clk 0:02:47]} 12. c5 {[%clk 0:02:32]}  Ne4 {[%clk 0:02:42]} 13. Bb2 {[%clk 0:02:25]}  f5 {[%clk 0:02:33]} 14. Qd3 {[%clk 0:02:06]}  Bf7 {[%clk 0:02:32]} 15. Rad1 {[%clk 0:02:03]}  Qd7 {[%clk 0:02:29]} 16. Rfe1 {[%clk 0:01:57]}  Rfd8 {[%clk 0:02:28]} 17. Na4 {[%clk 0:01:54]}  Rac8 {[%clk 0:02:22]} 18. Ba1 {[%clk 0:01:49]}  Qc7 {[%clk 0:02:16]} 19. Be2 {[%clk 0:01:41]}  Qf4 {[%clk 0:02:00]} 20. f3 {[%clk 0:01:28]}  Nf6 {[%clk 0:02:00]} 21. Bf1 {[%clk 0:01:18]}  Qc7 {[%clk 0:02:00]} 22. b4 {[%clk 0:01:01]}  Be8 {[%clk 0:01:58]} 23. Nc3 {[%clk 0:01:01]}  b6 {[%clk 0:01:55]} 24. a4 {[%clk 0:00:47]}  bxc5 {[%clk 0:01:50]} 25. bxc5 {[%clk 0:00:35]}  Rb8 {[%clk 0:01:43]} 26. Re6 {[%clk 0:00:32]}  Rb4 {[%clk 0:01:34]} 27. Rde1 {[%clk 0:00:24]}  Ne4 {[%clk 0:01:27]} 28. fxe4 {[%clk 0:00:20]}  dxe4 {[%clk 0:01:28]} 29. Qh3 {[%clk 0:00:17]}  Bxd4+ {[%clk 0:01:19]} 30. Kh1 {[%clk 0:00:17]}  Qxc5 {[%clk 0:01:19]} 31. Nb5 {[%clk 0:00:08]}  Bxb5 {[%clk 0:01:17]} 32. axb5 {[%clk 0:00:08]}  Bxa1 {[%clk 0:01:13]} 33. Rxa1 {[%clk 0:00:09]}  Rbd4 {[%clk 0:01:12]} 34. Qe3 {[%clk 0:00:07]}  Kf7 {[%clk 0:01:08]} 35. Rea6 {[%clk 0:00:07]}  R8d7 {[%clk 0:01:04]} 36. h3 {[%clk 0:00:07]}  Kg7 {[%clk 0:01:04]} 37. Qg5 {[%clk 0:00:07]}  R4d6 {[%clk 0:01:01]} 38. Rxd6 {[%clk 0:00:04]}  Qxd6 {[%clk 0:01:01]} 39. Qe3 {[%clk 0:00:05]}  Qe5 {[%clk 0:01:01]} 40. Rxa7 {[%clk 0:00:04]}  f4 {[%clk 0:00:59]} 41. Qb6 {[%clk 0:00:03]}  Rd1 {[%clk 0:00:57]} 42. Qf2 {[%clk 0:00:01]}  e3 {[%clk 0:00:56]} 43. Qe2 {[%clk 0:00:02]}  Rd2 {[%clk 0:00:54]} 44. Qc4 {[%clk 0:00:01]}  e2 {[%clk 0:00:53]} 45. Bxe2 {[%clk 0:00:02]}  Rxe2 {[%clk 0:00:53]} 46. Kh2 {[%clk 0:00:01]}  f3+ {[%clk 0:00:53]} 0-1


[Site "https://www.chess.com"]

[Event "Titled Tuesday Blitz May 24 Early 2022"]
[White "Chernomordik, Pavel"]
[Black "Sismeiro, Miguel"]
[WhiteFideId "2804530"]
[BlackFideId "1950975"]
[WhiteElo "2220"]
[BlackElo "2031"]
[Result "0-1"]
[Round "05"]
[TimeControl "180+1"]
[Date "2022.05.25"]
[WhiteClock "0:00:02"]
[BlackClock "0:00:06"]

1. e4 {[%clk 0:03:00]}  g6 {[%clk 0:02:59]} 2. h4 {[%clk 0:02:58]}  d5 {[%clk 0:02:58]} 3. exd5 {[%clk 0:02:56]}  Qxd5 {[%clk 0:02:59]} 4. h5 {[%clk 0:02:51]}  Bg7 {[%clk 0:02:41]} 5. Nc3 {[%clk 0:02:48]}  Qa5 {[%clk 0:02:38]} 6. d4 {[%clk 0:02:44]}  Nc6 {[%clk 0:02:23]} 7. Be3 {[%clk 0:02:33]}  Bd7 {[%clk 0:02:11]} 8. h6 {[%clk 0:02:26]}  Bf6 {[%clk 0:02:06]} 9. Qd2 {[%clk 0:02:26]}  O-O-O {[%clk 0:02:05]} 10. Bc4 {[%clk 0:02:14]}  Bg4 {[%clk 0:01:40]} 11. d5 {[%clk 0:01:59]}  Ne5 {[%clk 0:01:30]} 12. Be2 {[%clk 0:01:52]}  Bxe2 {[%clk 0:01:28]} 13. Qxe2 {[%clk 0:01:51]}  Rxd5 {[%clk 0:01:22]} 14. f4 {[%clk 0:01:46]}  Nc6 {[%clk 0:01:12]} 15. Qc4 {[%clk 0:01:43]}  e6 {[%clk 0:01:05]} 16. Ne2 {[%clk 0:01:42]}  Nge7 {[%clk 0:00:58]} 17. Kf2 {[%clk 0:01:17]}  Rh5 {[%clk 0:00:46]} 18. g4 {[%clk 0:01:10]}  Rxh1 {[%clk 0:00:45]} 19. Rxh1 {[%clk 0:01:09]}  Rd8 {[%clk 0:00:42]} 20. a3 {[%clk 0:01:03]}  Nd5 {[%clk 0:00:38]} 21. b4 {[%clk 0:00:53]}  Nxe3 {[%clk 0:00:36]} 22. Kxe3 {[%clk 0:00:53]}  Qb6+ {[%clk 0:00:36]} 23. Kf3 {[%clk 0:00:52]}  Nd4+ {[%clk 0:00:34]} 24. Kg3 {[%clk 0:00:47]}  Nxc2 {[%clk 0:00:24]} 25. Ne4 {[%clk 0:00:39]}  Qe3+ {[%clk 0:00:11]} 26. Kg2 {[%clk 0:00:39]}  Nd4 {[%clk 0:00:08]} 27. Re1 {[%clk 0:00:16]}  Qxe4+ {[%clk 0:00:08]} 28. Kh3 {[%clk 0:00:09]}  Qf3+ {[%clk 0:00:08]} 29. Ng3 {[%clk 0:00:07]}  Qxf4 {[%clk 0:00:06]} 30. Rc1 {[%clk 0:00:02]}  Be5 {[%clk 0:00:06]} 0-1


[Site "https://www.chess.com"]

[Event "Titled Tuesday Blitz May 24 Early 2022"]
[White "Clawitter, Craig"]
[Black "Stevens, Christian"]
[WhiteFideId "2023105"]
[BlackFideId "2604450"]
[WhiteElo "2222"]
[BlackElo "2479"]
[Result "0-1"]
[Round "05"]
[TimeControl "180+1"]
[Date "2022.05.25"]
[WhiteClock "0:00:04"]
[BlackClock "0:00:10"]

1. e4 {[%clk 0:03:00]}  c5 {[%clk 0:01:48]} 2. Nf3 {[%clk 0:02:59]}  e5 {[%clk 0:01:49]} 3. Nxe5 {[%clk 0:02:57]}  Qe7 {[%clk 0:01:49]} 4. d4 {[%clk 0:02:53]}  cxd4 {[%clk 0:01:34]} 5. Qxd4 {[%clk 0:02:48]}  Nc6 {[%clk 0:01:22]} 6. Nxc6 {[%clk 0:02:47]}  dxc6 {[%clk 0:01:22]} 7. Nc3 {[%clk 0:02:45]}  Nf6 {[%clk 0:01:21]} 8. Bg5 {[%clk 0:02:39]}  Qb4 {[%clk 0:01:18]} 9. Bxf6 {[%clk 0:02:32]}  gxf6 {[%clk 0:01:15]} 10. Qxf6 {[%clk 0:02:26]}  Rg8 {[%clk 0:01:15]} 11. O-O-O {[%clk 0:02:21]}  Be6 {[%clk 0:01:14]} 12. f4 {[%clk 0:02:01]}  Rg6 {[%clk 0:01:00]} 13. Qe5 {[%clk 0:01:55]}  Bg7 {[%clk 0:00:56]} 14. Qc7 {[%clk 0:01:16]}  Rc8 {[%clk 0:00:54]} 15. Qd6 {[%clk 0:01:12]}  Bxc3 {[%clk 0:00:46]} 16. bxc3 {[%clk 0:01:10]}  Qxc3 {[%clk 0:00:42]} 17. f5 {[%clk 0:01:00]}  Bxf5 {[%clk 0:00:41]} 18. Qd4 {[%clk 0:00:38]}  Qa3+ {[%clk 0:00:31]} 19. Kb1 {[%clk 0:00:38]}  Be6 {[%clk 0:00:30]} 20. Bc4 {[%clk 0:00:12]}  Qb4+ {[%clk 0:00:24]} 21. Bb3 {[%clk 0:00:12]}  Qxd4 {[%clk 0:00:22]} 22. Rxd4 {[%clk 0:00:13]}  Bxb3 {[%clk 0:00:11]} 23. axb3 {[%clk 0:00:14]}  Rxg2 {[%clk 0:00:12]} 24. Rhd1 {[%clk 0:00:14]}  Rc7 {[%clk 0:00:12]} 25. Rd8+ {[%clk 0:00:13]}  Ke7 {[%clk 0:00:12]} 26. Ra8 {[%clk 0:00:12]}  Rxh2 {[%clk 0:00:10]} 27. Rxa7 {[%clk 0:00:10]}  h5 {[%clk 0:00:11]} 28. Ra8 {[%clk 0:00:09]}  h4 {[%clk 0:00:11]} 29. Rh8 {[%clk 0:00:09]}  Ke6 {[%clk 0:00:11]} 30. Rd3 {[%clk 0:00:07]}  Rd7 {[%clk 0:00:10]} 31. Rh6+ {[%clk 0:00:07]}  Ke7 {[%clk 0:00:10]} 32. Rf3 {[%clk 0:00:05]}  Rdd2 {[%clk 0:00:09]} 33. Rh7 {[%clk 0:00:04]}  Rxc2 {[%clk 0:00:09]} 34. Rfxf7+ {[%clk 0:00:04]}  Kd6 {[%clk 0:00:09]} 35. Rd7+ {[%clk 0:00:04]}  Kc5 {[%clk 0:00:10]} 0-1


[Site "https://www.chess.com"]

[Event "Titled Tuesday Blitz May 24 Early 2022"]
[White "Coto Mederos, Michel"]
[Black "Araujo Filho, Luiz Antonio Coel"]
[WhiteFideId "3508528"]
[BlackFideId "2130661"]
[WhiteElo "2427"]
[BlackElo "2260"]
[Result "1-0"]
[Round "05"]
[TimeControl "180+1"]
[Date "2022.05.25"]
[WhiteClock "0:00:33"]
[BlackClock "0:00:01"]

1. d4 {[%clk 0:03:00]}  f5 {[%clk 0:01:11]} 2. Bg5 {[%clk 0:02:48]}  g6 {[%clk 0:01:09]} 3. Nc3 {[%clk 0:02:45]}  Bg7 {[%clk 0:01:07]} 4. e4 {[%clk 0:02:42]}  fxe4 {[%clk 0:01:06]} 5. Nxe4 {[%clk 0:02:43]}  Nf6 {[%clk 0:01:06]} 6. Bd3 {[%clk 0:02:37]}  d5 {[%clk 0:01:06]} 7. Ng3 {[%clk 0:02:32]}  c6 {[%clk 0:01:03]} 8. Nf3 {[%clk 0:02:32]}  O-O {[%clk 0:00:54]} 9. Qd2 {[%clk 0:02:31]}  a5 {[%clk 0:00:35]} 10. O-O-O {[%clk 0:02:01]}  Na6 {[%clk 0:00:33]} 11. Ne5 {[%clk 0:01:37]}  Nb4 {[%clk 0:00:28]} 12. Kb1 {[%clk 0:01:37]}  Nxd3 {[%clk 0:00:25]} 13. Qxd3 {[%clk 0:01:38]}  Ne4 {[%clk 0:00:13]} 14. Nxe4 {[%clk 0:01:27]}  dxe4 {[%clk 0:00:14]} 15. Qe3 {[%clk 0:00:49]}  a4 {[%clk 0:00:06]} 16. a3 {[%clk 0:00:43]}  Re8 {[%clk 0:00:02]} 17. Qxe4 {[%clk 0:00:41]}  Bf5 {[%clk 0:00:02]} 18. Qe2 {[%clk 0:00:40]}  Qd5 {[%clk 0:00:01]} 19. g4 {[%clk 0:00:33]} 1-0


[Site "https://www.chess.com"]

[Event "Titled Tuesday Blitz May 24 Early 2022"]
[White "Durarbayli, Vasif"]
[Black "Vovk, Orest"]
[WhiteFideId "13402935"]
[BlackFideId "14113490"]
[WhiteElo "2528"]
[BlackElo "2203"]
[Result "1-0"]
[Round "05"]
[TimeControl "180+1"]
[Date "2022.05.24"]
[WhiteClock "0:00:08"]
[BlackClock "0:00:14"]

1. d4 {[%clk 0:03:00]}  e5 {[%clk 0:02:56]} 2. dxe5 {[%clk 0:02:59]}  Nc6 {[%clk 0:02:55]} 3. e4 {[%clk 0:02:57]}  Nxe5 {[%clk 0:02:54]} 4. f4 {[%clk 0:02:56]}  Nc6 {[%clk 0:02:53]} 5. Nf3 {[%clk 0:02:56]}  Bb4+ {[%clk 0:02:53]} 6. Bd2 {[%clk 0:02:54]}  Qe7 {[%clk 0:02:51]} 7. Bd3 {[%clk 0:02:41]}  Bc5 {[%clk 0:02:41]} 8. Qe2 {[%clk 0:02:40]}  Nf6 {[%clk 0:02:38]} 9. e5 {[%clk 0:02:33]}  Ng4 {[%clk 0:02:35]} 10. Rf1 {[%clk 0:02:25]}  d6 {[%clk 0:02:22]} 11. h3 {[%clk 0:02:25]}  Nh6 {[%clk 0:02:20]} 12. Nc3 {[%clk 0:02:25]}  O-O {[%clk 0:02:12]} 13. O-O-O {[%clk 0:02:19]}  Nf5 {[%clk 0:02:08]} 14. Qe4 {[%clk 0:02:08]}  g6 {[%clk 0:02:01]} 15. Rfe1 {[%clk 0:02:07]}  Nb4 {[%clk 0:01:48]} 16. a3 {[%clk 0:02:00]}  Ng3 {[%clk 0:01:42]} 17. axb4 {[%clk 0:01:38]}  Nxe4 {[%clk 0:01:41]} 18. Rxe4 {[%clk 0:01:29]}  Bb6 {[%clk 0:01:33]} 19. Nd5 {[%clk 0:01:29]}  Qd8 {[%clk 0:01:30]} 20. Nf6+ {[%clk 0:01:19]}  Kg7 {[%clk 0:01:27]} 21. g4 {[%clk 0:01:17]}  d5 {[%clk 0:01:23]} 22. Re2 {[%clk 0:01:14]}  a5 {[%clk 0:01:18]} 23. b5 {[%clk 0:01:13]}  a4 {[%clk 0:01:15]} 24. Kb1 {[%clk 0:01:04]}  a3 {[%clk 0:01:10]} 25. b3 {[%clk 0:01:02]}  a2+ {[%clk 0:01:08]} 26. Ka1 {[%clk 0:01:03]}  Qe7 {[%clk 0:01:07]} 27. Bc3 {[%clk 0:01:01]}  d4 {[%clk 0:00:49]} 28. Bb2 {[%clk 0:00:59]}  Rd8 {[%clk 0:00:46]} 29. h4 {[%clk 0:00:55]}  Bc5 {[%clk 0:00:45]} 30. f5 {[%clk 0:00:29]}  Ba3 {[%clk 0:00:41]} 31. Bxa3 {[%clk 0:00:08]}  Qxa3 {[%clk 0:00:38]} 32. Ng5 {[%clk 0:00:07]}  Qb4 {[%clk 0:00:36]} 33. Nge4 {[%clk 0:00:07]}  b6 {[%clk 0:00:28]} 34. h5 {[%clk 0:00:06]}  g5 {[%clk 0:00:25]} 35. h6+ {[%clk 0:00:05]}  Kh8 {[%clk 0:00:23]} 36. Bc4 {[%clk 0:00:06]}  Bb7 {[%clk 0:00:22]} 37. Bxf7 {[%clk 0:00:05]}  Bxe4 {[%clk 0:00:22]} 38. Nxe4 {[%clk 0:00:06]}  d3 {[%clk 0:00:20]} 39. cxd3 {[%clk 0:00:06]}  Qxb3 {[%clk 0:00:18]} 40. Bxb3 {[%clk 0:00:04]}  Rd4 {[%clk 0:00:17]} 41. Nxg5 {[%clk 0:00:05]}  Rb4 {[%clk 0:00:17]} 42. Bxa2 {[%clk 0:00:04]}  Rxg4 {[%clk 0:00:17]} 43. Nf7+ {[%clk 0:00:04]}  Kg8 {[%clk 0:00:18]} 44. e6 {[%clk 0:00:04]}  Kf8 {[%clk 0:00:18]} 45. Ne5 {[%clk 0:00:04]}  Ke7 {[%clk 0:00:18]} 46. Nd7 {[%clk 0:00:05]}  Rf4 {[%clk 0:00:14]} 47. f6+ {[%clk 0:00:06]}  Rxf6 {[%clk 0:00:14]} 48. Nxf6 {[%clk 0:00:07]}  Kxf6 {[%clk 0:00:14]} 49. e7 {[%clk 0:00:08]} 1-0


[Site "https://www.chess.com"]

[Event "Titled Tuesday Blitz May 24 Early 2022"]
[White "Fromm, Marius"]
[Black "Legenia, Artem"]
[WhiteFideId "12993190"]
[BlackFideId "14136945"]
[WhiteElo "2500"]
[BlackElo "1936"]
[Result "1-0"]
[Round "05"]
[TimeControl "180+1"]
[Date "2022.05.25"]
[WhiteClock "0:01:53"]
[BlackClock "0:02:22"]

1. e4 {[%clk 0:02:56]}  c6 {[%clk 0:02:59]} 2. d4 {[%clk 0:02:55]}  d5 {[%clk 0:03:00]} 3. exd5 {[%clk 0:02:56]}  cxd5 {[%clk 0:03:00]} 4. Bd3 {[%clk 0:02:56]}  Nc6 {[%clk 0:03:00]} 5. c3 {[%clk 0:02:57]}  g6 {[%clk 0:03:00]} 6. Ne2 {[%clk 0:02:54]}  Bg7 {[%clk 0:02:57]} 7. O-O {[%clk 0:02:54]}  Nh6 {[%clk 0:02:57]} 8. Ng3 {[%clk 0:02:25]}  O-O {[%clk 0:02:52]} 9. Re1 {[%clk 0:02:24]}  Nf5 {[%clk 0:02:51]} 10. Nxf5 {[%clk 0:02:21]}  Bxf5 {[%clk 0:02:51]} 11. Bxf5 {[%clk 0:02:21]}  gxf5 {[%clk 0:02:51]} 12. Bg5 {[%clk 0:02:20]}  Qd7 {[%clk 0:02:49]} 13. Nd2 {[%clk 0:02:17]}  e6 {[%clk 0:02:46]} 14. Qh5 {[%clk 0:02:14]}  b5 {[%clk 0:02:45]} 15. Re3 {[%clk 0:02:13]}  Ne7 {[%clk 0:02:45]} 16. Rh3 {[%clk 0:02:10]}  Rfc8 {[%clk 0:02:31]} 17. Qxh7+ {[%clk 0:02:08]}  Kf8 {[%clk 0:02:31]} 18. Bh6 {[%clk 0:01:53]}  Bxh6 {[%clk 0:02:23]} 19. Rxh6 {[%clk 0:01:54]}  Ng6 {[%clk 0:02:22]} 20. Rxg6 {[%clk 0:01:53]} 1-0


[Site "https://www.chess.com"]

[Event "Titled Tuesday Blitz May 24 Early 2022"]
[White "Galiana Fernandez, Adrian"]
[Black "Baches Garcia, Guillermo"]
[WhiteFideId "32010150"]
[BlackFideId "2209764"]
[WhiteElo "2133"]
[BlackElo "2503"]
[Result "0-1"]
[Round "05"]
[TimeControl "180+1"]
[Date "2022.05.25"]
[WhiteClock "0:00:02"]
[BlackClock "0:00:15"]

1. c4 {[%clk 0:03:00]}  e5 {[%clk 0:02:59]} 2. Nc3 {[%clk 0:03:00]}  Nf6 {[%clk 0:02:59]} 3. Nf3 {[%clk 0:02:57]}  Nc6 {[%clk 0:02:59]} 4. e3 {[%clk 0:02:56]}  d5 {[%clk 0:02:59]} 5. cxd5 {[%clk 0:02:56]}  Nxd5 {[%clk 0:03:00]} 6. Bb5 {[%clk 0:02:56]}  Nxc3 {[%clk 0:03:00]} 7. bxc3 {[%clk 0:02:54]}  Bd6 {[%clk 0:03:00]} 8. d4 {[%clk 0:02:53]}  exd4 {[%clk 0:03:00]} 9. cxd4 {[%clk 0:02:52]}  O-O {[%clk 0:03:00]} 10. O-O {[%clk 0:02:51]}  Bg4 {[%clk 0:03:00]} 11. h3 {[%clk 0:02:50]}  Bh5 {[%clk 0:02:59]} 12. Bb2 {[%clk 0:02:33]}  Qe7 {[%clk 0:02:46]} 13. Re1 {[%clk 0:02:17]}  f5 {[%clk 0:02:33]} 14. a4 {[%clk 0:02:07]}  Kh8 {[%clk 0:02:11]} 15. Be2 {[%clk 0:01:09]}  Rad8 {[%clk 0:01:51]} 16. Nd2 {[%clk 0:01:04]}  Bxe2 {[%clk 0:01:44]} 17. Rxe2 {[%clk 0:01:03]}  Nb4 {[%clk 0:01:28]} 18. Qb3 {[%clk 0:00:59]}  c6 {[%clk 0:01:24]} 19. Nc4 {[%clk 0:00:55]}  f4 {[%clk 0:01:04]} 20. e4 {[%clk 0:00:45]}  f3 {[%clk 0:01:00]} 21. gxf3 {[%clk 0:00:44]}  Qg5+ {[%clk 0:00:51]} 22. Kf1 {[%clk 0:00:41]}  Bh2 {[%clk 0:00:40]} 23. Re3 {[%clk 0:00:36]}  Na6 {[%clk 0:00:24]} 24. Qxb7 {[%clk 0:00:33]}  Nb8 {[%clk 0:00:21]} 25. Ke2 {[%clk 0:00:28]}  Bf4 {[%clk 0:00:19]} 26. Rb3 {[%clk 0:00:23]}  Nd7 {[%clk 0:00:19]} 27. Qxa7 {[%clk 0:00:17]}  Qh5 {[%clk 0:00:18]} 28. a5 {[%clk 0:00:16]}  Nf6 {[%clk 0:00:17]} 29. Kd1 {[%clk 0:00:04]}  Nxe4 {[%clk 0:00:17]} 30. Kc2 {[%clk 0:00:03]}  Nxf2 {[%clk 0:00:15]} 31. Rf1 {[%clk 0:00:02]}  Qf5+ {[%clk 0:00:15]} 0-1


[Site "https://www.chess.com"]